[Event "Late-Titled-Tuesday-Blitz-April-02-2024"]
[Site "Chess.com"]
[Date "2024.04.02"]
[Round "11"]
[White "katharinareinecke"]
[Black "microbear"]
[Result "0-1"]
[WhiteElo "2014"]
[BlackElo "2390"]
[TimeControl "180+1"]
[EndTime "16:04:20 PDT"]
[Termination "microbear won on time"]

1. d4 {[%clk 0:03:00.9]} 1... Nf6 {[%clk 0:02:59.6]} 2. c4 {[%clk 0:03:00.5]}
2... c5 {[%clk 0:02:59.3]} 3. Nf3 {[%clk 0:03:00.4]} 3... cxd4 {[%clk
0:02:58.8]} 4. Nxd4 {[%clk 0:02:59.3]} 4... Nc6 {[%clk 0:02:59.1]} 5. g3 {[%clk
0:02:58]} 5... e5 {[%clk 0:02:54]} 6. Nxc6 {[%clk 0:02:52.1]} 6... bxc6 {[%clk
0:02:51.7]} 7. Bg2 {[%clk 0:02:52.1]} 7... d5 {[%clk 0:02:39.6]} 8. O-O {[%clk
0:02:49]} 8... Be6 {[%clk 0:02:35.4]} 9. Bg5 {[%clk 0:02:46.6]} 9... Be7 {[%clk
0:02:30.8]} 10. Nc3 {[%clk 0:02:46.5]} 10... Rc8 {[%clk 0:02:22.5]} 11. Bxf6
{[%clk 0:02:32]} 11... Bxf6 {[%clk 0:02:12.7]} 12. cxd5 {[%clk 0:02:32.2]} 12...
cxd5 {[%clk 0:02:12.8]} 13. Nxd5 {[%clk 0:02:29.3]} 13... O-O {[%clk 0:02:08.5]}
14. Nxf6+ {[%clk 0:02:24.7]} 14... Qxf6 {[%clk 0:02:09.4]} 15. a3 {[%clk
0:02:20.3]} 15... Bc4 {[%clk 0:01:57.2]} 16. Re1 {[%clk 0:02:15.7]} 16... Qa6
{[%clk 0:01:53.9]} 17. e3 {[%clk 0:02:13.5]} 17... Rfd8 {[%clk 0:01:53.1]} 18.
Qh5 {[%clk 0:02:02.8]} 18... f6 {[%clk 0:01:46.5]} 19. Rad1 {[%clk 0:01:45.6]}
19... Qb5 {[%clk 0:01:32.1]} 20. Rxd8+ {[%clk 0:01:29.1]} 20... Rxd8 {[%clk
0:01:33]} 21. Rd1 {[%clk 0:01:27.9]} 21... Rb8 {[%clk 0:01:07.9]} 22. Rd2 {[%clk
0:00:58.9]} 22... Be6 {[%clk 0:01:01.1]} 23. Qh4 {[%clk 0:00:47.5]} 23... Rc8
{[%clk 0:00:55.1]} 24. h3 {[%clk 0:00:35]} 24... Qa5 {[%clk 0:00:38.6]} 25. Qb4
{[%clk 0:00:29.7]} 25... Qxb4 {[%clk 0:00:37.9]} 26. axb4 {[%clk 0:00:30.2]}
26... Rb8 {[%clk 0:00:34.7]} 27. Be4 {[%clk 0:00:16.7]} 27... Rxb4 {[%clk
0:00:29.5]} 28. Rd8+ {[%clk 0:00:15.9]} 28... Kf7 {[%clk 0:00:29.9]} 29. Bxh7
{[%clk 0:00:13.8]} 29... Rxb2 {[%clk 0:00:22.2]} 30. Ra8 {[%clk 0:00:08.5]}
30... Rb1+ {[%clk 0:00:18.8]} 31. Kh2 {[%clk 0:00:08.8]} 31... Rh1+ {[%clk
0:00:18.6]} 32. Kxh1 {[%clk 0:00:06.6]} 32... Bd5+ {[%clk 0:00:18.9]} 33. Kg1
{[%clk 0:00:05.4]} 33... Bxa8 {[%clk 0:00:19.1]} 34. Bc2 {[%clk 0:00:03.9]}
34... Bd5 {[%clk 0:00:14.3]} 35. f4 {[%clk 0:00:03.3]} 35... Ke6 {[%clk
0:00:13.8]} 36. Kf2 {[%clk 0:00:02.7]} 36... Kd6 {[%clk 0:00:13.4]} 37. e4
{[%clk 0:00:03]} 37... Bc4 {[%clk 0:00:11.8]} 38. Ke3 {[%clk 0:00:03.2]} 38...
a5 {[%clk 0:00:11.1]} 39. g4 {[%clk 0:00:02.6]} 39... Kc5 {[%clk 0:00:11.1]} 40.
g5 {[%clk 0:00:02.2]} 40... Kb4 {[%clk 0:00:08.9]} 41. h4 {[%clk 0:00:01.5]}
41... Bf7 {[%clk 0:00:07.5]} 0-1

[Event "Late-Titled-Tuesday-Blitz-April-02-2024"]
[Site "Chess.com"]
[Date "2024.04.02"]
[Round "11"]
[White "lcmil"]
[Black "Manukyan_Artak"]
[Result "1-0"]
[WhiteElo "2317"]
[BlackElo "2505"]
[TimeControl "180+1"]
[EndTime "16:04:24 PDT"]
[Termination "lcmil won by resignation"]

1. e4 {[%clk 0:03:00.9]} 1... c6 {[%clk 0:03:00.1]} 2. d4 {[%clk 0:03:00.6]}
2... d5 {[%clk 0:03:01]} 3. e5 {[%clk 0:03:00.6]} 3... Bf5 {[%clk 0:03:00.7]} 4.
h4 {[%clk 0:03:01.3]} 4... h5 {[%clk 0:03:00.6]} 5. Bg5 {[%clk 0:03:01.1]} 5...
Qb6 {[%clk 0:03:00.1]} 6. Bd3 {[%clk 0:03:01.3]} 6... Bxd3 {[%clk 0:02:59.1]} 7.
Qxd3 {[%clk 0:03:00.8]} 7... e6 {[%clk 0:02:59.6]} 8. Nd2 {[%clk 0:03:00.3]}
8... Qa6 {[%clk 0:02:58.2]} 9. c4 {[%clk 0:02:58.7]} 9... Bb4 {[%clk 0:02:58.2]}
10. Nf3 {[%clk 0:02:46.5]} 10... Nh6 {[%clk 0:02:57.3]} 11. O-O {[%clk
0:02:43.2]} 11... Nf5 {[%clk 0:02:57]} 12. a3 {[%clk 0:02:24.6]} 12... Bxd2
{[%clk 0:02:54.4]} 13. Nxd2 {[%clk 0:02:25.5]} 13... Nd7 {[%clk 0:02:50.5]} 14.
b4 {[%clk 0:02:23.4]} 14... O-O {[%clk 0:02:39.1]} 15. Rab1 {[%clk 0:02:11.2]}
15... dxc4 {[%clk 0:02:35.5]} 16. Nxc4 {[%clk 0:02:05.8]} 16... Nb6 {[%clk
0:02:35.6]} 17. b5 {[%clk 0:01:13.2]} 17... cxb5 {[%clk 0:02:30.7]} 18. Ne3
{[%clk 0:01:13.8]} 18... b4 {[%clk 0:02:10.9]} 19. Qxa6 {[%clk 0:01:07.5]} 19...
bxa6 {[%clk 0:02:11.8]} 20. Nxf5 {[%clk 0:01:07.4]} 20... exf5 {[%clk
0:02:12.2]} 21. axb4 {[%clk 0:01:03.2]} 21... Nd5 {[%clk 0:02:09.8]} 22. Ra1
{[%clk 0:00:50.2]} 22... Nxb4 {[%clk 0:02:07]} 23. Rfb1 {[%clk 0:00:49.4]} 23...
Rfb8 {[%clk 0:02:04.2]} 24. Be7 {[%clk 0:00:45.2]} 24... Nc6 {[%clk 0:02:00.2]}
25. Rxb8+ {[%clk 0:00:43.6]} 25... Rxb8 {[%clk 0:02:01.1]} 26. Bd6 {[%clk
0:00:41.4]} 26... Rb7 {[%clk 0:01:47.8]} 27. d5 {[%clk 0:00:38.9]} 27... Ne7
{[%clk 0:01:24.3]} 28. Bxe7 {[%clk 0:00:38]} 28... Rxe7 {[%clk 0:01:25.2]} 29.
f4 {[%clk 0:00:38]} 29... Rb7 {[%clk 0:01:10.5]} 30. Rxa6 {[%clk 0:00:36.1]}
30... g6 {[%clk 0:01:08.8]} 31. Rc6 {[%clk 0:00:27.2]} 31... Kf8 {[%clk
0:01:08.2]} 32. d6 {[%clk 0:00:22.2]} 32... Ke8 {[%clk 0:01:04.1]} 33. Rc8+
{[%clk 0:00:21]} 33... Kd7 {[%clk 0:01:03.9]} 34. Rf8 {[%clk 0:00:21.7]} 34...
Kc6 {[%clk 0:00:59.6]} 35. Ra8 {[%clk 0:00:18.2]} 35... Kd5 {[%clk 0:00:53.2]}
36. Rc8 {[%clk 0:00:15.7]} 36... Ke6 {[%clk 0:00:42.3]} 37. Kf2 {[%clk
0:00:14.3]} 37... Rb2+ {[%clk 0:00:38.5]} 38. Ke3 {[%clk 0:00:14.3]} 38... Rxg2
{[%clk 0:00:32.7]} 39. Re8+ {[%clk 0:00:13.9]} 39... Kd7 {[%clk 0:00:31.6]} 40.
Re7+ {[%clk 0:00:14.5]} 40... Kc6 {[%clk 0:00:31.7]} 41. Rxa7 {[%clk 0:00:14.3]}
41... Rg3+ {[%clk 0:00:29.9]} 42. Kd4 {[%clk 0:00:14.6]} 42... Rg4 {[%clk
0:00:29.9]} 43. d7 {[%clk 0:00:12.5]} 43... Rxf4+ {[%clk 0:00:26.6]} 44. Kd3
{[%clk 0:00:10]} 44... Rf1 {[%clk 0:00:25]} 45. Ke2 {[%clk 0:00:09.6]} 45... Ra1
{[%clk 0:00:22.6]} 46. Rxa1 {[%clk 0:00:08.7]} 46... Kxd7 {[%clk 0:00:22.8]} 47.
Kf3 {[%clk 0:00:09.6]} 47... f6 {[%clk 0:00:22.3]} 48. exf6 {[%clk 0:00:08.4]}
48... Ke6 {[%clk 0:00:22.4]} 49. Kf4 {[%clk 0:00:09.3]} 49... Kxf6 {[%clk
0:00:22.5]} 50. Ra6+ {[%clk 0:00:10.2]} 50... Kg7 {[%clk 0:00:23]} 51. Kg5
{[%clk 0:00:11]} 51... Kh7 {[%clk 0:00:23.2]} 52. Rxg6 {[%clk 0:00:11.5]} 52...
f4 {[%clk 0:00:23.6]} 53. Rf6 {[%clk 0:00:12.2]} 53... f3 {[%clk 0:00:23.7]} 54.
Rxf3 {[%clk 0:00:12.1]} 1-0

[Event "Late-Titled-Tuesday-Blitz-April-02-2024"]
[Site "Chess.com"]
[Date "2024.04.02"]
[Round "11"]
[White "MasterSonnevanck23"]
[Black "Szachulec75"]
[Result "0-1"]
[WhiteElo "2376"]
[BlackElo "2093"]
[TimeControl "180+1"]
[EndTime "16:04:28 PDT"]
[Termination "Szachulec75 won on time"]

1. d4 {[%clk 0:03:00.9]} 1... Nf6 {[%clk 0:02:58.9]} 2. Nf3 {[%clk 0:03:00.7]}
2... g6 {[%clk 0:02:57.7]} 3. c4 {[%clk 0:02:58.1]} 3... Bg7 {[%clk 0:02:58.2]}
4. Nc3 {[%clk 0:02:58.2]} 4... d6 {[%clk 0:02:58.5]} 5. e4 {[%clk 0:02:57.1]}
5... O-O {[%clk 0:02:58.9]} 6. Be2 {[%clk 0:02:57.2]} 6... Bg4 {[%clk 0:02:59]}
7. Be3 {[%clk 0:02:56.1]} 7... Nfd7 {[%clk 0:02:59.5]} 8. Rc1 {[%clk 0:02:52.8]}
8... Nc6 {[%clk 0:02:57.2]} 9. d5 {[%clk 0:02:50.1]} 9... Ncb8 {[%clk
0:02:55.5]} 10. Nd4 {[%clk 0:02:44.3]} 10... Bxe2 {[%clk 0:02:54.1]} 11. Qxe2
{[%clk 0:02:44.5]} 11... c5 {[%clk 0:02:51.6]} 12. Nf3 {[%clk 0:02:39.1]} 12...
a6 {[%clk 0:02:50.1]} 13. a4 {[%clk 0:02:36.2]} 13... Ne5 {[%clk 0:02:50.5]} 14.
Nxe5 {[%clk 0:02:34.4]} 14... Bxe5 {[%clk 0:02:49.8]} 15. Bh6 {[%clk 0:02:29.5]}
15... Bg7 {[%clk 0:02:48.5]} 16. Qd2 {[%clk 0:02:15.8]} 16... e5 {[%clk
0:02:47.8]} 17. dxe6 {[%clk 0:01:35.5]} 17... fxe6 {[%clk 0:02:46.1]} 18. Bxg7
{[%clk 0:01:23.1]} 18... Kxg7 {[%clk 0:02:45.3]} 19. Rd1 {[%clk 0:01:22.4]}
19... Qf6 {[%clk 0:02:41.1]} 20. O-O {[%clk 0:01:21.4]} 20... Rd8 {[%clk
0:02:40.7]} 21. e5 {[%clk 0:01:11]} 21... Qxe5 {[%clk 0:02:38.9]} 22. Rfe1
{[%clk 0:01:10.5]} 22... Qf5 {[%clk 0:02:32.5]} 23. Ne4 {[%clk 0:01:05.1]} 23...
Nc6 {[%clk 0:02:07.3]} 24. Nxd6 {[%clk 0:01:03.7]} 24... Qf6 {[%clk 0:01:58]}
25. Qe3 {[%clk 0:00:54.1]} 25... Nd4 {[%clk 0:01:58]} 26. Ne4 {[%clk 0:00:50.1]}
26... Qe5 {[%clk 0:01:46.6]} 27. f4 {[%clk 0:00:40.2]} 27... Qf5 {[%clk
0:01:35]} 28. b4 {[%clk 0:00:23.4]} 28... b6 {[%clk 0:01:34]} 29. bxc5 {[%clk
0:00:23]} 29... bxc5 {[%clk 0:01:33.9]} 30. Rb1 {[%clk 0:00:22.7]} 30... Ra7
{[%clk 0:01:28.9]} 31. Rb6 {[%clk 0:00:19.7]} 31... h6 {[%clk 0:01:15.5]} 32. h3
{[%clk 0:00:18.9]} 32... Rf8 {[%clk 0:01:07]} 33. Rf1 {[%clk 0:00:16.6]} 33...
e5 {[%clk 0:01:01.3]} 34. Nd6 {[%clk 0:00:15.5]} 34... Qh5 {[%clk 0:00:33.4]}
35. f5 {[%clk 0:00:13.2]} 35... gxf5 {[%clk 0:00:24.3]} 36. Qxe5+ {[%clk
0:00:12.6]} 36... Kh7 {[%clk 0:00:24.9]} 37. Ne8 {[%clk 0:00:10.4]} 37... Raf7
{[%clk 0:00:15.8]} 38. Nf6+ {[%clk 0:00:08.8]} 38... Rxf6 {[%clk 0:00:15.9]} 39.
Rxf6 {[%clk 0:00:08.7]} 39... Rg8 {[%clk 0:00:12.1]} 40. Rxa6 {[%clk 0:00:05.5]}
40... Qg5 {[%clk 0:00:07.7]} 41. Ra7+ {[%clk 0:00:04.4]} 41... Kg6 {[%clk
0:00:08.3]} 42. Qd6+ {[%clk 0:00:03.2]} 42... Kh5 {[%clk 0:00:08.6]} 43. Rf2
{[%clk 0:00:01.9]} 43... Qc1+ {[%clk 0:00:05.8]} 44. Kh2 {[%clk 0:00:01]} 44...
Qg5 {[%clk 0:00:06.7]} 0-1

[Event "Late-Titled-Tuesday-Blitz-April-02-2024"]
[Site "Chess.com"]
[Date "2024.04.02"]
[Round "11"]
[White "Evgeny81"]
[Black "yaguigor"]
[Result "1-0"]
[WhiteElo "2755"]
[BlackElo "2608"]
[TimeControl "180+1"]
[EndTime "16:04:33 PDT"]
[Termination "Evgeny81 won on time"]

1. e4 {[%clk 0:02:57.6]} 1... c5 {[%clk 0:02:59.5]} 2. Nf3 {[%clk 0:02:56.6]}
2... e6 {[%clk 0:02:57.5]} 3. d4 {[%clk 0:02:55.4]} 3... cxd4 {[%clk 0:02:57.3]}
4. Nxd4 {[%clk 0:02:54.3]} 4... Nf6 {[%clk 0:02:57.9]} 5. Nc3 {[%clk 0:02:53.8]}
5... Nc6 {[%clk 0:02:58.1]} 6. Ndb5 {[%clk 0:02:52]} 6... d6 {[%clk 0:02:57.6]}
7. Bf4 {[%clk 0:02:52]} 7... e5 {[%clk 0:02:58.3]} 8. Bg5 {[%clk 0:02:52.4]}
8... a6 {[%clk 0:02:59]} 9. Na3 {[%clk 0:02:51.1]} 9... b5 {[%clk 0:02:59.6]}
10. Nd5 {[%clk 0:02:51.1]} 10... Be7 {[%clk 0:02:58.9]} 11. Bxf6 {[%clk
0:02:51.1]} 11... Bxf6 {[%clk 0:02:59.8]} 12. c3 {[%clk 0:02:51.5]} 12... Bg5
{[%clk 0:02:55.8]} 13. Nc2 {[%clk 0:02:51.3]} 13... Ne7 {[%clk 0:02:55.6]} 14.
a4 {[%clk 0:02:48.7]} 14... bxa4 {[%clk 0:02:54.9]} 15. Rxa4 {[%clk 0:02:44.8]}
15... O-O {[%clk 0:02:52]} 16. Be2 {[%clk 0:02:43.5]} 16... a5 {[%clk
0:02:48.6]} 17. O-O {[%clk 0:02:43]} 17... Bd7 {[%clk 0:02:35.7]} 18. Ra3 {[%clk
0:02:39.2]} 18... Nxd5 {[%clk 0:02:32.3]} 19. Qxd5 {[%clk 0:02:37.1]} 19... Be6
{[%clk 0:02:32.8]} 20. Qd3 {[%clk 0:02:36.1]} 20... d5 {[%clk 0:02:31.2]} 21.
Rd1 {[%clk 0:02:33.2]} 21... dxe4 {[%clk 0:02:25.2]} 22. Qxe4 {[%clk 0:02:34.1]}
22... Qc7 {[%clk 0:02:25]} 23. Ne3 {[%clk 0:02:19.9]} 23... Bxe3 {[%clk
0:02:04.9]} 24. Qxe3 {[%clk 0:02:18.7]} 24... Rab8 {[%clk 0:02:04.6]} 25. Rd2
{[%clk 0:02:14.3]} 25... Bb3 {[%clk 0:01:50.8]} 26. h3 {[%clk 0:02:08.7]} 26...
a4 {[%clk 0:01:49.5]} 27. Ra1 {[%clk 0:01:58.5]} 27... Rfd8 {[%clk 0:01:48.4]}
28. Bd1 {[%clk 0:01:45]} 28... Rxd2 {[%clk 0:01:46.5]} 29. Qxd2 {[%clk
0:01:45.9]} 29... Rd8 {[%clk 0:01:45.1]} 30. Qe2 {[%clk 0:01:42.6]} 30... Bxd1
{[%clk 0:00:58]} 31. Rxd1 {[%clk 0:01:43.5]} 31... Rb8 {[%clk 0:00:53.1]} 32.
Qa6 {[%clk 0:01:25.6]} 32... g6 {[%clk 0:00:48.5]} 33. Rd2 {[%clk 0:01:19.3]}
33... e4 {[%clk 0:00:39]} 34. Qxa4 {[%clk 0:01:17.5]} 34... e3 {[%clk
0:00:39.1]} 35. fxe3 {[%clk 0:01:16.4]} 35... Qg3 {[%clk 0:00:35.5]} 36. Qf4
{[%clk 0:01:13.2]} 36... Qe1+ {[%clk 0:00:34.1]} 37. Kh2 {[%clk 0:01:13.6]}
37... Rf8 {[%clk 0:00:17.9]} 38. Rf2 {[%clk 0:01:05.5]} 38... h5 {[%clk
0:00:15.8]} 39. h4 {[%clk 0:01:04]} 39... Kh7 {[%clk 0:00:14.2]} 40. c4 {[%clk
0:01:01.1]} 40... Qb4 {[%clk 0:00:13.1]} 41. Rc2 {[%clk 0:00:53.9]} 41... Kg8
{[%clk 0:00:10.5]} 42. c5 {[%clk 0:00:52.2]} 42... Qb3 {[%clk 0:00:11]} 43. Qe4
{[%clk 0:00:46]} 43... Rc8 {[%clk 0:00:07.1]} 44. c6 {[%clk 0:00:44]} 44... Kf8
{[%clk 0:00:03.8]} 45. c7 {[%clk 0:00:40.1]} 45... Qb6 {[%clk 0:00:02.6]} 46.
Qe5 {[%clk 0:00:37.5]} 46... Kg8 {[%clk 0:00:02.9]} 47. Rc4 {[%clk 0:00:24.2]}
47... Qb3 {[%clk 0:00:02.2]} 48. Rd4 {[%clk 0:00:21.7]} 48... Qb6 {[%clk
0:00:01.7]} 49. Rd7 {[%clk 0:00:17.4]} 1-0

[Event "Late-Titled-Tuesday-Blitz-April-02-2024"]
[Site "Chess.com"]
[Date "2024.04.02"]
[Round "11"]
[White "PonyQueen07"]
[Black "kleber2007"]
[Result "1/2-1/2"]
[WhiteElo "2264"]
[BlackElo "2443"]
[TimeControl "180+1"]
[EndTime "16:04:36 PDT"]
[Termination "Game drawn by stalemate"]

1. c4 {[%clk 0:03:00.9]} 1... c5 {[%clk 0:02:58.9]} 2. Nc3 {[%clk 0:03:01.1]}
2... Nc6 {[%clk 0:02:57.7]} 3. g3 {[%clk 0:03:00.8]} 3... g6 {[%clk 0:02:57.7]}
4. Bg2 {[%clk 0:03:00.2]} 4... Bg7 {[%clk 0:02:58.3]} 5. e4 {[%clk 0:02:58.3]}
5... e6 {[%clk 0:02:56.4]} 6. Nge2 {[%clk 0:02:58.4]} 6... Nge7 {[%clk
0:02:56.1]} 7. O-O {[%clk 0:02:58.4]} 7... O-O {[%clk 0:02:55.9]} 8. d3 {[%clk
0:02:58.6]} 8... d6 {[%clk 0:02:56]} 9. Be3 {[%clk 0:02:56.2]} 9... Nd4 {[%clk
0:02:55.8]} 10. Qd2 {[%clk 0:02:52.4]} 10... b6 {[%clk 0:02:55.2]} 11. e5 {[%clk
0:02:47.1]} 11... Rb8 {[%clk 0:02:51.8]} 12. exd6 {[%clk 0:02:46.9]} 12... Nef5
{[%clk 0:02:51.4]} 13. Bxd4 {[%clk 0:02:43.5]} 13... cxd4 {[%clk 0:02:41.7]} 14.
Ne4 {[%clk 0:02:36]} 14... Nxd6 {[%clk 0:02:40.6]} 15. Nxd6 {[%clk 0:02:30.7]}
15... Qxd6 {[%clk 0:02:41.5]} 16. b4 {[%clk 0:02:21.4]} 16... e5 {[%clk
0:02:26]} 17. Rac1 {[%clk 0:02:19.8]} 17... Bg4 {[%clk 0:02:22.6]} 18. c5 {[%clk
0:02:08.5]} 18... bxc5 {[%clk 0:02:20.7]} 19. bxc5 {[%clk 0:02:08.8]} 19... Qc7
{[%clk 0:02:20.2]} 20. h3 {[%clk 0:02:08.7]} 20... Be6 {[%clk 0:02:19.8]} 21. f4
{[%clk 0:01:56.7]} 21... Rb5 {[%clk 0:02:15.2]} 22. fxe5 {[%clk 0:01:53.7]}
22... Rfb8 {[%clk 0:02:08.3]} 23. Nxd4 {[%clk 0:01:47.1]} 23... Rxc5 {[%clk
0:01:58.4]} 24. Nxe6 {[%clk 0:01:39.3]} 24... fxe6 {[%clk 0:01:59.3]} 25. Rxc5
{[%clk 0:01:37.8]} 25... Qxc5+ {[%clk 0:01:58.2]} 26. d4 {[%clk 0:01:37.6]}
26... Qb4 {[%clk 0:01:43.2]} 27. Qxb4 {[%clk 0:01:18.7]} 27... Rxb4 {[%clk
0:01:44.1]} 28. d5 {[%clk 0:01:16.7]} 28... Bxe5 {[%clk 0:01:24.3]} 29. dxe6
{[%clk 0:01:15.4]} 29... Bd4+ {[%clk 0:01:19.2]} 30. Kh2 {[%clk 0:01:12.5]}
30... Bc5 {[%clk 0:01:16.1]} 31. Rc1 {[%clk 0:00:53.6]} 31... Be7 {[%clk
0:01:14.2]} 32. Rc7 {[%clk 0:00:51.5]} 32... Kf8 {[%clk 0:01:12.1]} 33. Rxa7
{[%clk 0:00:46]} 33... Rb2 {[%clk 0:01:11.9]} 34. a4 {[%clk 0:00:40.7]} 34... h5
{[%clk 0:01:09.3]} 35. h4 {[%clk 0:00:33.5]} 35... Re2 {[%clk 0:01:06.3]} 36.
Ra6 {[%clk 0:00:24.8]} 36... Bb4 {[%clk 0:00:56.4]} 37. a5 {[%clk 0:00:18.9]}
37... Ra2 {[%clk 0:00:53.8]} 38. Ra8+ {[%clk 0:00:18.6]} 38... Ke7 {[%clk
0:00:53.5]} 39. a6 {[%clk 0:00:15.3]} 39... Bc5 {[%clk 0:00:49.6]} 40. Rg8
{[%clk 0:00:05.2]} 40... Kf6 {[%clk 0:00:33.7]} 41. Kh3 {[%clk 0:00:02.2]} 41...
Rxa6 {[%clk 0:00:29.3]} 42. Be4 {[%clk 0:00:02]} 42... Rxe6 {[%clk 0:00:26.6]}
43. Rxg6+ {[%clk 0:00:02.1]} 43... Ke5 {[%clk 0:00:23.6]} 44. Rxe6+ {[%clk
0:00:03]} 44... Kxe6 {[%clk 0:00:24.1]} 45. Bg6 {[%clk 0:00:03.4]} 45... Bf2
{[%clk 0:00:18.8]} 46. Bxh5 {[%clk 0:00:03.2]} 46... Bxg3 {[%clk 0:00:18.4]} 47.
Kxg3 {[%clk 0:00:04.1]} 47... Kf6 {[%clk 0:00:18.5]} 48. Kg4 {[%clk 0:00:04]}
48... Kg7 {[%clk 0:00:19.4]} 49. Kg5 {[%clk 0:00:04.5]} 49... Kh8 {[%clk
0:00:20.3]} 50. Kh6 {[%clk 0:00:04.5]} 50... Kg8 {[%clk 0:00:21.2]} 51. Bg6
{[%clk 0:00:05.1]} 51... Kh8 {[%clk 0:00:22.1]} 52. h5 {[%clk 0:00:05.8]} 52...
Kg8 {[%clk 0:00:23]} 53. Kg5 {[%clk 0:00:06.3]} 53... Kh8 {[%clk 0:00:23.9]} 54.
h6 {[%clk 0:00:07]} 54... Kg8 {[%clk 0:00:24.8]} 55. Bh5 {[%clk 0:00:07.6]}
55... Kh8 {[%clk 0:00:25.7]} 56. Bg4 {[%clk 0:00:08.4]} 56... Kg8 {[%clk
0:00:26.6]} 57. Bf5 {[%clk 0:00:09.3]} 57... Kh8 {[%clk 0:00:27.5]} 58. Be6
{[%clk 0:00:09.9]} 58... Kh7 {[%clk 0:00:27.6]} 59. Bf7 {[%clk 0:00:10.3]} 59...
Kh8 {[%clk 0:00:28.5]} 60. Bg6 {[%clk 0:00:10.7]} 60... Kg8 {[%clk 0:00:28.3]}
61. Kf5 {[%clk 0:00:11.1]} 61... Kh8 {[%clk 0:00:29.2]} 62. Kf6 {[%clk 0:00:12]}
62... Kg8 {[%clk 0:00:29.8]} 63. Ke7 {[%clk 0:00:12.7]} 63... Kh8 {[%clk
0:00:30.7]} 64. Ke8 {[%clk 0:00:13.1]} 64... Kg8 {[%clk 0:00:31.6]} 65. Ke7
{[%clk 0:00:13.5]} 65... Kh8 {[%clk 0:00:32.5]} 66. Kf6 {[%clk 0:00:14.3]} 66...
Kg8 {[%clk 0:00:33.4]} 67. h7+ {[%clk 0:00:14.4]} 67... Kh8 {[%clk 0:00:34.3]}
68. Kg5 {[%clk 0:00:14.7]} 68... Kg7 {[%clk 0:00:34.5]} 69. Kh5 {[%clk
0:00:14.6]} 69... Kh8 {[%clk 0:00:35.4]} 70. Bb1 {[%clk 0:00:14.7]} 70... Kg7
{[%clk 0:00:36.3]} 71. Kg4 {[%clk 0:00:14.6]} 71... Kh8 {[%clk 0:00:37.2]} 72.
Kh4 {[%clk 0:00:15.5]} 72... Kg7 {[%clk 0:00:38.1]} 73. Kh5 {[%clk 0:00:16.4]}
73... Kh8 {[%clk 0:00:38.7]} 74. Kh6 {[%clk 0:00:17.3]} 1/2-1/2

[Event "Late-Titled-Tuesday-Blitz-April-02-2024"]
[Site "Chess.com"]
[Date "2024.04.02"]
[Round "11"]
[White "mightysmasher"]
[Black "Akhayan"]
[Result "1-0"]
[WhiteElo "2565"]
[BlackElo "2438"]
[TimeControl "180+1"]
[EndTime "16:04:38 PDT"]
[Termination "mightysmasher won by resignation"]

1. e4 {[%clk 0:03:00.9]} 1... e5 {[%clk 0:02:59.3]} 2. Nf3 {[%clk 0:02:59.4]}
2... Nc6 {[%clk 0:02:59.6]} 3. d4 {[%clk 0:02:58.2]} 3... exd4 {[%clk
0:02:59.4]} 4. Nxd4 {[%clk 0:02:59.1]} 4... Nf6 {[%clk 0:02:59.7]} 5. Nc3 {[%clk
0:02:59]} 5... Bb4 {[%clk 0:02:59.3]} 6. Nxc6 {[%clk 0:02:59]} 6... bxc6 {[%clk
0:02:59.9]} 7. Bd3 {[%clk 0:02:59.2]} 7... d5 {[%clk 0:02:59.6]} 8. exd5 {[%clk
0:02:58.6]} 8... O-O {[%clk 0:02:59.3]} 9. O-O {[%clk 0:02:58.4]} 9... cxd5
{[%clk 0:02:59.8]} 10. Bg5 {[%clk 0:02:58.1]} 10... c6 {[%clk 0:03:00.3]} 11.
Qf3 {[%clk 0:02:58]} 11... Bd6 {[%clk 0:03:00.6]} 12. h3 {[%clk 0:02:55.2]}
12... Rb8 {[%clk 0:03:00.7]} 13. Rab1 {[%clk 0:02:53.9]} 13... h6 {[%clk
0:03:00.1]} 14. Bxf6 {[%clk 0:02:53.6]} 14... Qxf6 {[%clk 0:03:00.7]} 15. Qxf6
{[%clk 0:02:54]} 15... gxf6 {[%clk 0:03:01.3]} 16. Ne2 {[%clk 0:02:54.4]} 16...
c5 {[%clk 0:02:58.2]} 17. c3 {[%clk 0:02:53.5]} 17... Be6 {[%clk 0:02:55.5]} 18.
Rfd1 {[%clk 0:02:52.5]} 18... Rb6 {[%clk 0:02:53.1]} 19. b3 {[%clk 0:02:51.8]}
19... Be5 {[%clk 0:02:48.5]} 20. Rbc1 {[%clk 0:02:49.4]} 20... c4 {[%clk
0:02:35.7]} 21. Bc2 {[%clk 0:02:44.5]} 21... Rc8 {[%clk 0:02:34]} 22. f4 {[%clk
0:02:43.6]} 22... Bb8 {[%clk 0:02:22.3]} 23. f5 {[%clk 0:02:42.7]} 23... Bd7
{[%clk 0:02:16.5]} 24. Rxd5 {[%clk 0:02:42]} 24... Bc6 {[%clk 0:02:12.2]} 25.
Rd4 {[%clk 0:02:38]} 25... cxb3 {[%clk 0:02:08.9]} 26. Bxb3 {[%clk 0:02:36.7]}
26... Be5 {[%clk 0:02:07.4]} 27. Rg4+ {[%clk 0:02:35.5]} 27... Kf8 {[%clk
0:02:06.2]} 28. Rd1 {[%clk 0:02:11.5]} 28... Rbb8 {[%clk 0:01:47.7]} 29. Nd4
{[%clk 0:02:09.1]} 29... Be8 {[%clk 0:01:45.7]} 30. Nf3 {[%clk 0:01:59.2]} 30...
Bxc3 {[%clk 0:01:34.3]} 31. Rh4 {[%clk 0:01:55.2]} 31... Kg7 {[%clk 0:01:23.5]}
32. Rg4+ {[%clk 0:01:54.7]} 32... Kf8 {[%clk 0:01:23.1]} 33. Rd3 {[%clk
0:01:41.9]} 33... Ba5 {[%clk 0:01:22.4]} 34. Rh4 {[%clk 0:01:35]} 34... Bb6+
{[%clk 0:01:22.6]} 35. Kh2 {[%clk 0:01:24]} 35... Kg7 {[%clk 0:01:10.5]} 36. Nd2
{[%clk 0:01:15.6]} 36... Bc7+ {[%clk 0:01:10.1]} 37. Kh1 {[%clk 0:01:12.3]}
37... Rd8 {[%clk 0:01:00.6]} 38. Rg4+ {[%clk 0:01:10.9]} 38... Kf8 {[%clk
0:01:00]} 39. Rxd8 {[%clk 0:01:03.5]} 39... Rxd8 {[%clk 0:01:00.2]} 40. Ne4
{[%clk 0:01:01.2]} 40... h5 {[%clk 0:00:45.2]} 41. Rh4 {[%clk 0:00:50.1]} 41...
Kg7 {[%clk 0:00:39.3]} 42. Nc5 {[%clk 0:00:33.5]} 42... Bc6 {[%clk 0:00:30.4]}
43. Rc4 {[%clk 0:00:28.4]} 43... Bb5 {[%clk 0:00:19.2]} 44. Ne6+ {[%clk
0:00:25]} 44... fxe6 {[%clk 0:00:12.7]} 45. Rxc7+ {[%clk 0:00:24.3]} 45... Rd7
{[%clk 0:00:11.5]} 46. Rc5 {[%clk 0:00:20.5]} 46... Be2 {[%clk 0:00:04.7]} 47.
fxe6 {[%clk 0:00:18.8]} 47... Re7 {[%clk 0:00:05.4]} 48. Kh2 {[%clk 0:00:18.3]}
48... a6 {[%clk 0:00:04.4]} 49. Kg3 {[%clk 0:00:18.2]} 49... Bb5 {[%clk
0:00:04.7]} 50. Kf4 {[%clk 0:00:18]} 50... h4 {[%clk 0:00:04]} 51. Rh5 {[%clk
0:00:15.8]} 51... Bf1 {[%clk 0:00:03.8]} 52. Rxh4 {[%clk 0:00:15.4]} 52... Bxg2
{[%clk 0:00:04.1]} 53. Rg4+ {[%clk 0:00:15.5]} 1-0